bitfinex-derivatives/quotes_SOLF0:USTF0_20260311
["timestamp","ask_amount","ask_price","bid_price","bid_amount"]
[1773207262645,10.444,86.169,86.121,8.13823331]
[1773207263846,2.58356083,86.16,86.121,8.13823331]
[1773207264743,10.444,86.169,86.121,8.13823331]
[1773207268349,10.444,86.169,86.123,8.13976092]
[1773207272051,2.58356083,86.16,86.11,2.58356083]
[1773207272252,2.58356083,86.16,86.111,8.14469303]
[1773207273750,2.58356083,86.15,86.111,8.14469303]
[1773207274844,2.58356083,86.16,86.111,8.14469303]
[1773207275546,10.445,86.157,86.111,8.14469303]
[1773207277054,2.58356083,86.16,86.111,8.14469303]
[1773207277055,10.446,86.15,86.111,8.14469303]
[1773207277353,13.02956083,86.15,86.111,8.14469303]
[1773207278155,13.02856083,86.16,86.111,8.14469303]
[1773207278455,10.445,86.16,86.121,8.13873991]
[1773207279750,2.58356083,86.18,86.131,8.13814355]
[1773207280455,2.58356083,86.17,86.131,8.13814355]
[1773207281446,10.444,86.169,86.131,8.13814355]
[1773207285461,10.445,86.158,86.086,8.14423264]
[1773207285660,10.445,86.158,86.101,8.14420985]
[1773207286158,2.58597655,86.15,86.101,8.14420985]
[1773207286362,10.445,86.158,86.108,8.14420985]
[1773207286554,2.58597655,86.16,86.108,8.14420985]
[1773207287060,2.58597655,86.16,86.11,2.58597655]
[1773207287357,10.445,86.157,86.11,2.58597655]
[1773207287956,2.58597655,86.16,86.108,8.14420985]
[1773207288862,2.58597655,86.15,86.108,8.14420985]
[1773207289762,2.58597655,86.14,86.096,8.13513995]
[1773207290460,10.447,86.137,86.096,8.13513995]
[1773207291052,10.447,86.145,86.101,8.13151162]
[1773207291252,14.21394641,86.187,86.101,8.13151162]
[1773207291253,8.73674119,86.16,86.101,8.13151162]
[1773207291458,34.82,86.171,86.101,8.13151162]
[1773207291459,10.446,86.148,86.101,8.13151162]
[1773207293162,2.58597655,86.14,86.101,8.13151162]
[1773207293759,10.445,86.158,86.11,2.58597655]
[1773207293957,10.445,86.158,86.111,8.16572369]
[1773207294662,2.58597655,86.15,86.111,8.16572369]
[1773207294853,2.58597655,86.17,86.122,8.15763138]
[1773207295860,10.66045981,86.202,86.122,8.15763138]
[1773207296061,2.58597655,86.18,86.141,8.15760353]
[1773207296265,2.58597655,86.17,86.13,10.74358008]
[1773207296465,10.444,86.168,86.13,8.15760353]
[1773207296865,10.444,86.168,86.13,10.74358008]
[1773207297061,10.444,86.168,86.057,36.17326734]
[1773207297062,34.82,86.191,86.141,8.1187822]
[1773207297259,2.58597655,86.2,86.152,8.1187822]
[1773207297465,2.58597655,86.18,86.122,8.1187822]
[1773207297764,2.58597655,86.17,86.122,8.1187822]
[1773207298359,8.74327904,86.193,86.141,8.11877665]
[1773207298562,2.58597655,86.19,86.141,8.11877665]
[1773207298760,2.58597655,86.18,86.13,2.58597655]
[1773207299064,2.58597655,86.18,86.13,10.73818888]
[1773207299365,2.58597655,86.18,86.131,8.15221233]
[1773207300066,2.58597655,86.19,86.141,8.15218864]
[1773207300665,2.58597655,86.18,86.141,8.15218864]
[1773207301265,13.02597655,86.2,86.151,8.15853985]
[1773207301773,12.6800639,86.223,86.131,8.15851329]
[1773207301774,2.58597655,86.18,86.131,8.15851329]
[1773207302069,2.58597655,86.17,86.131,8.15851329]
[1773207302264,2.58597655,86.16,86.119,8.15851329]
[1773207302766,2.58597655,86.13,86.09,8.15235179]
[1773207302961,2.58597655,86.13,86.09,6.45030533]
[1773207303563,2.58597655,86.13,86.063,189.77805658]
[1773207303564,2.58597655,86.15,86.1,2.58597655]
[1773207304368,13.03197655,86.15,86.1,2.58597655]
[1773207304873,13.03197655,86.15,86.101,7.34052346]
[1773207306975,2.58597655,86.14,86.101,7.34052346]
[1773207307978,10.447,86.139,86.101,7.34052346]
[1773207308182,2.58597655,86.13,86.081,7.36682662]
[1773207308381,280.26102895,86.178,86.081,7.36682662]
[1773207308382,2.58597655,86.12,86.081,7.36682662]
[1773207308577,294.47497536,86.178,86.081,7.36682662]
[1773207308578,10.447,86.14,86.081,7.36682662]
[1773207308877,8.71338256,86.164,86.101,7.3751079]
[1773207309089,2.58597655,86.15,86.101,7.3751079]
[1773207309482,2.58597655,86.16,86.101,7.3751079]
[1773207309875,2.58597655,86.16,86.103,7.3750505]
[1773207310080,2.58597655,86.16,86.111,7.3750505]
[1773207310283,2.58597655,86.17,86.12,2.58597655]
[1773207310582,2.58597655,86.17,86.121,7.3750505]
[1773207311780,10.75018164,86.209,86.131,7.31919224]
[1773207311985,2.58597655,86.17,86.131,7.31919224]
[1773207313481,10.444,86.169,86.131,7.31919224]
[1773207316391,2.58597655,86.17,86.131,7.31919224]
[1773207318388,10.445,86.159,86.115,7.29842179]
[1773207318887,2.58597655,86.16,86.115,7.29842179]
[1773207319392,2.58597655,86.16,86.121,7.29680343]
[1773207319986,10.444,86.168,86.121,7.29680343]
[1773207320187,2.58597655,86.17,86.121,7.29680343]
[1773207322388,10.443,86.177,86.13,2.58597655]
[1773207322592,10.443,86.177,86.131,7.29121689]
[1773207322892,315.08102895,86.178,86.131,7.29121689]
[1773207322893,10.444,86.169,86.131,7.29121689]
[1773207323593,2.58597655,86.16,86.131,7.29121689]
[1773207324888,315.08102895,86.178,86.043,11.61]
[1773207324889,2.58597655,86.15,86.108,7.29439942]
[1773207325094,2.58597655,86.14,86.108,7.29439942]
[1773207327993,2.58597655,86.13,86.09,7.30352998]
[1773207328585,2.58597655,86.12,86.09,7.30352998]
[1773207336006,2.58597655,86.11,86.074,7.34396481]
[1773207336406,34.82,86.128,86.074,7.34396481]
[1773207336604,10.45,86.119,86.074,7.34396481]
[1773207338506,10.451,86.112,86.074,7.34396481]
[1773207339812,2.58597655,86.12,86.074,7.34396481]
[1773207343422,34.82,86.129,86.08,2.58597655]
[1773207343720,2.58839621,86.12,86.081,7.35477207]
[1773207347217,2.58839621,86.12,86.033,2.02108784]
[1773207347218,2.58839621,86.09,86.046,7.3494042]
[1773207347515,2.58839621,86.09,85.976,28.93861387]
[1773207347516,2.58839621,86.07,86.034,7.3494042]
[1773207347721,2.58839621,86.06,86.034,7.3494042]
[1773207347922,2.58839621,86.07,86.034,7.3494042]
[1773207348123,2.58839621,86.08,86.034,7.3494042]
[1773207348324,2.58839621,86.09,86.041,7.34937552]
[1773207348719,2.58839621,86.08,86.041,7.34937552]
[1773207349521,10.454,86.086,86.041,7.34937552]
[1773207349825,2.58839621,86.09,86.041,7.34937552]
[1773207350324,2.58839621,86.08,86.041,7.34937552]
[1773207351728,10.455,86.079,86.041,7.34937552]
[1773207352927,2.58839621,86.08,86.041,7.34937552]
[1773207354431,2.58839621,86.09,86.041,7.34937552]
[1773207355328,2.58839621,86.09,86.043,10.459]
[1773207355527,2.58839621,86.09,86.044,7.37590859]
[1773207355723,10.452,86.098,86.051,7.37587516]
[1773207355925,2.58839621,86.1,86.051,7.37587516]
[1773207356224,10.451,86.107,86.061,7.37587516]
[1773207357727,2.58839621,86.09,86.028,7.37745437]
[1773207357930,2.58839621,86.09,86.041,7.37745437]
[1773207358229,10.455,86.078,86.041,7.37745437]
[1773207358433,2.58839621,86.07,86.041,7.37745437]
[1773207358833,10.455,86.078,86.041,7.37745437]
[1773207361435,2.58839621,86.08,86.028,7.35426358]
[1773207361736,2.58839621,86.09,86.041,7.35423807]
[1773207361937,2.58839621,86.08,86.041,7.35423807]
[1773207362334,2.58839621,86.07,86.028,7.35423807]
[1773207362742,2.58839621,86.09,86.041,7.42047323]
[1773207363342,10.454,86.079,86.041,7.42047323]
[1773207364439,10.453,86.088,86.041,7.42047323]
[1773207365543,2.58839621,86.08,86.041,7.42047323]
[1773207367541,10.454,86.081,86.041,7.42047323]
[1773207367743,2.58839621,86.08,86.041,7.42047323]
[1773207370144,13.04139621,86.09,86.041,7.42047323]
[1773207372642,10.453,86.09,86.043,7.40214832]
[1773207372855,2.58839621,86.09,86.051,7.40214832]
[1773207374549,10.452,86.097,86.051,7.40214832]
[1773207374748,2.58839621,86.09,86.051,7.40214832]
[1773207377249,2.58839621,86.1,86.051,7.40214832]
[1773207377650,2.58839621,86.12,86.061,7.38751011]
[1773207377848,9.19921823,86.119,86.061,7.38751011]
[1773207378044,2.58839621,86.12,86.061,7.38751011]
[1773207378248,9.19824854,86.119,86.061,7.38751011]
[1773207378449,2.58839621,86.11,86.061,7.38751011]
[1773207378747,2.58839621,86.11,86.064,7.38409173]
[1773207378952,10.45,86.116,86.071,7.38409173]
[1773207380153,2.58839621,86.11,86.071,7.38409173]
[1773207380359,10.45,86.116,86.071,7.38409173]
[1773207380746,2.58839621,86.11,86.071,7.38409173]
[1773207382355,13.04039621,86.1,86.043,7.38043868]
[1773207382555,13.04039621,86.1,86.05,2.58839621]
[1773207382753,13.04039621,86.1,86.051,7.37719273]
[1773207383451,2.58839621,86.1,86.051,7.37719273]
[1773207389957,10.453,86.092,86.051,7.37719273]
[1773207390260,2.58839621,86.1,86.051,7.37719273]
[1773207390760,34.85,86.128,86.051,7.37719273]
[1773207390967,2.58839621,86.1,86.051,7.37719273]
[1773207391455,13.04039621,86.1,86.051,7.37719273]
[1773207392258,13.04039621,86.1,86.053,7.37333767]
[1773207393659,2.58839621,86.07,86.028,7.37148925]
[1773207395374,10.455,86.078,86.033,7.3503362]
[1773207396072,2.58839621,86.07,86.033,7.3503362]
[1773207398171,2.58839621,86.05,86.027,0.00082055]
[1773207399876,2.58839621,86.04,86.027,0.00082055]
[1773207403571,2.59320853,86.04,86.027,0.00082055]
[1773207408987,13.05220853,86.04,86.027,0.00082055]
[1773207409786,2.59320853,86.04,86.027,0.00082055]
[1773207410584,20.907,86.089,86.027,0.00082055]
[1773207410585,10.457,86.056,86.027,0.00082055]
[1773207410887,2.59320853,86.06,86.027,0.00082055]
[1773207413189,10.456,86.064,86.027,7.27565567]
[1773207413488,2.59320853,86.06,86.027,7.27565567]
[1773207415595,10.456,86.064,86.027,7.27565567]
[1773207416996,2.59320853,86.07,86.027,7.27565567]
[1773207418488,2.59320853,86.06,86.027,7.27565567]
[1773207418793,2.59320853,86.04,86.027,0.00082055]
[1773207419585,20.907,86.091,86.027,0.00082055]
[1773207419586,2.59320853,86.05,86.027,0.00082055]
[1773207421698,2.59320853,86.04,85.997,7.26944041]
[1773207421887,2.59320853,86.03,85.997,7.26944041]
[1773207422795,2.59320853,86.04,85.997,7.26944041]
[1773207424399,10.46,86.037,85.997,7.26944041]
[1773207426893,2.59320853,86.03,85.997,7.26944041]
[1773207427096,13.05420853,86.03,85.997,7.26944041]
[1773207427292,10.461,86.03,85.997,7.26944041]
[1773207427499,2.59320853,86.01,85.969,7.25090583]
[1773207427697,2.59320853,86.0,85.969,7.25090583]
[1773207427893,10.464,86.002,85.969,7.25090583]
[1773207428597,2.59320853,85.98,85.928,7.25090666]
[1773207428799,2.59320853,85.97,85.928,7.25090666]
[1773207428994,2.59320853,85.96,85.915,7.23904673]
[1773207429200,2.59320853,85.96,85.92,2.59320853]
[1773207429600,2.59320853,85.96,85.915,7.23904673]
[1773207429799,2.59320853,85.97,85.915,7.23904673]
[1773207430298,10.469,85.957,85.915,7.23904673]
[1773207430499,2.59320853,85.97,85.915,7.23904673]
[1773207430699,2.59320853,85.97,85.921,7.29472287]
[1773207431094,34.85,86.014,85.921,7.29472287]
[1773207431299,2.59320853,85.97,85.921,7.29472287]
[1773207432399,10.468,85.965,85.921,7.29472287]
[1773207432703,2.59320853,85.97,85.93,2.59320853]
[1773207433003,10.466,85.987,85.941,7.29481764]
[1773207433201,2.59320853,85.98,85.931,7.29481764]
[1773207433594,10.467,85.978,85.931,7.29481764]
[1773207433796,2.59320853,85.97,85.931,7.29481764]
[1773207433998,10.468,85.969,85.931,7.29481764]
[1773207434204,2.59320853,85.96,85.918,7.29481347]
[1773207434908,2.59320853,85.96,85.921,7.30047959]
[1773207435107,2.59320853,85.97,85.921,7.30047959]
[1773207435606,2.59320853,85.97,85.93,9.89368812]
[1773207435905,2.59320853,85.97,85.93,7.30047959]
[1773207437009,10.467,85.973,85.931,7.41506835]
[1773207437202,2.59320853,85.98,85.931,7.41506835]
[1773207437707,10.467,85.979,85.931,7.41506835]
[1773207438405,10.469,85.962,85.931,7.41506835]
[1773207438803,10.469,85.962,85.849,28.93861387]
[1773207438804,2.59320853,85.95,85.911,7.4118185]
[1773207439001,2.59320853,85.96,85.911,7.4118185]
[1773207439198,10.47,85.949,85.911,7.4118185]
[1773207440108,34.85,85.995,85.897,7.41197644]
[1773207440309,2.59320853,85.94,85.897,7.41197644]
[1773207440511,2.59320853,85.95,85.901,7.41197644]
[1773207441009,2.59320853,85.94,85.901,7.41197644]
[1773207441206,10.472,85.937,85.901,7.41197644]
[1773207441613,10.47,85.949,85.901,7.41197644]
[1773207441810,2.59320853,85.94,85.901,7.41197644]
[1773207442808,10.47,85.949,85.901,7.41197644]
[1773207443210,10.47,85.949,85.91,2.59320853]
[1773207444213,10.47,85.949,85.901,7.41197644]
[1773207444613,10.469,85.958,85.911,7.4122244]
[1773207445513,2.59320853,85.96,85.921,7.4122244]
[1773207446306,13.06220853,85.96,85.921,7.4122244]
[1773207448910,2.02525752,85.982,85.921,7.4122244]
[1773207449116,2.59320853,86.01,85.96,2.59320853]
[1773207449308,2.59320853,86.0,85.951,7.39725733]
[1773207449713,2.59320853,86.0,85.95,2.59320853]
[1773207449914,10.466,85.987,85.94,2.59320853]
[1773207450613,10.465,85.997,85.95,2.59320853]
[1773207450808,10.465,85.997,85.951,7.43347863]
[1773207451012,10.465,85.997,85.96,2.59320853]
[1773207451316,2.59320853,86.0,85.96,2.59320853]
[1773207452118,10.464,85.999,85.951,7.43347863]
[1773207454915,10.464,85.999,85.961,7.41949205]
[1773207456521,10.464,85.999,85.95,2.59320853]
[1773207456722,10.465,85.989,85.95,2.59320853]
[1773207456916,2.59320853,86.0,85.951,7.40743176]
[1773207458422,10.464,85.999,85.951,7.40743176]
[1773207460222,10.466,85.987,85.951,7.40743176]
[1773207461028,2.59320853,85.99,85.951,7.40743176]
[1773207461230,10.464,85.997,85.951,7.40743176]
[1773207461428,2.59320853,85.99,85.951,7.40743176]
[1773207461630,2.59320853,86.0,85.951,7.40743176]
[1773207462819,10.464,85.999,85.951,7.40743176]
[1773207464731,10.463,86.007,85.961,7.40552269]
[1773207467726,2.59589875,86.02,85.971,7.39141461]
[1773207468430,2.59589875,86.0,85.959,7.39141461]
[1773207470137,2.59589875,86.01,85.971,7.39590138]
[1773207470828,10.462,86.016,85.971,7.39590138]
[1773207471733,2.59589875,86.01,85.971,7.39590138]
[1773207473731,10.462,86.016,85.971,7.39590138]
[1773207476535,2.59589875,86.01,85.971,7.39590138]
[1773207478540,2.59589875,86.01,85.973,7.39183455]
[1773207481438,2.59589875,86.01,85.975,7.40203569]
[1773207481743,2.59589875,86.02,85.975,7.40203569]
[1773207482043,10.462,86.019,85.975,7.40203569]
[1773207483143,10.461,86.027,85.981,7.34052647]
[1773207484039,287.25561886,86.042,85.992,7.3405214]
[1773207484343,2.59589875,86.04,85.992,7.3405214]
[1773207485046,2.59589875,86.04,86.001,7.33722477]
[1773207485345,287.25561886,86.042,86.001,7.33722477]
[1773207485841,34.85,86.089,86.001,7.33722477]
[1773207485842,10.459,86.038,86.001,7.33722477]
[1773207486045,2.59589875,86.03,86.001,7.33722477]
[1773207486447,2.59589875,86.04,86.001,7.33722477]
[1773207488246,10.46,86.037,86.001,7.33722477]
[1773207488448,2.59589875,86.03,86.001,7.33722477]
[1773207488649,10.46,86.037,86.001,7.33722477]
[1773207489541,2.59589875,86.04,86.001,7.33722477]
[1773207491950,10.458,86.047,86.001,7.33722477]
[1773207492649,2.59589875,86.05,86.003,7.26484355]
[1773207494351,2.59589875,86.05,86.006,7.26484316]
[1773207495559,10.458,86.049,86.006,7.26484316]
[1773207496761,13.05489875,86.04,86.006,7.26484316]
[1773207496954,2.59589875,86.02,85.981,7.25819141]
[1773207498160,10.461,86.025,85.981,7.25819141]
[1773207501452,2.59589875,86.02,85.981,7.25819141]
[1773207507063,10.461,86.025,85.981,7.25819141]
[1773207507760,2.59589875,86.03,85.982,7.45563359]
[1773207509458,10.461,86.028,85.982,7.45563359]
[1773207517467,2.59589875,86.03,85.991,7.42977794]
[1773207517665,10.46,86.036,85.991,7.42977794]
[1773207518168,2.59589875,86.04,86.001,7.42977646]
[1773207518562,2.59589875,86.03,85.99,7.42977646]
[1773207524281,10.46,86.038,85.99,10.02567521]
[1773207524479,10.46,86.038,85.991,7.46180303]
[1773207525977,10.46,86.038,85.994,7.46038722]
[1773207539192,10.46,86.038,85.928,36.17326734]
[1773207539193,10.458,86.047,86.001,7.41275178]
[1773207539591,2.5936828,86.04,86.001,7.41275178]
[1773207541397,13.0526828,86.04,86.001,7.41275178]
[1773207541698,2.5936828,86.01,85.978,7.41281812]
[1773207549907,10.463,86.006,85.978,7.41281812]
[1773207550205,2.5936828,86.0,85.978,7.41281812]
[1773207550394,10.463,86.006,85.978,7.41281812]
[1773207550599,2.5936828,85.99,85.953,7.43638616]
[1773207550799,2.5936828,85.98,85.953,7.43638616]
[1773207551504,2.5936828,85.97,85.935,7.43674602]
[1773207554308,2.5936828,85.95,85.907,7.45899062]
[1773207554508,2.5936828,85.94,85.907,7.45899062]
[1773207556200,2.5936828,85.95,85.907,7.45899062]
[1773207556400,10.47,85.951,85.907,7.45899062]
[1773207556601,2.5936828,85.95,85.907,7.45899062]
[1773207557514,10.47,85.949,85.907,7.45899062]
[1773207559311,2.5936828,85.94,85.907,7.45899062]
[1773207559912,2.5936828,85.95,85.907,7.45899062]
[1773207562013,10.469,85.959,85.907,7.45899062]
[1773207562214,2.5936828,85.95,85.907,7.45899062]
[1773207563518,10.468,85.968,85.911,7.42250693]
[1773207563814,2.5936828,85.96,85.911,7.42250693]
[1773207565213,2.5936828,85.96,85.914,7.3993575]
[1773207566309,2.5936828,85.96,85.915,10.474]
[1773207566508,2.5936828,85.96,85.916,7.39935427]
[1773207567614,10.468,85.968,85.921,7.41741111]
[1773207568711,2.5936828,85.96,85.921,7.41741111]
[1773207570016,10.469,85.961,85.921,7.41741111]
[1773207571519,10.469,85.959,85.921,7.41741111]
[1773207571715,10.469,85.959,85.835,28.93861387]
[1773207571716,2.5936828,85.93,85.901,7.41251306]
[1773207572116,10.473,85.928,85.881,7.41250977]
[1773207572417,2.5936828,85.92,85.881,7.41250977]
[1773207576711,13.0666828,85.93,85.881,7.41250977]
[1773207577123,10.472,85.938,85.883,7.40672151]
[1773207577323,2.5936828,85.93,85.883,7.40672151]
[1773207578219,2.5936828,85.93,85.891,7.40680866]
[1773207579520,2.5936828,85.93,85.893,7.40963588]
[1773207584431,10.473,85.928,85.893,7.40963588]
[1773207588932,13.07417155,85.92,85.882,7.39149821]
[1773207593030,2.60017155,85.92,85.882,7.39149821]
[1773207593440,2.60017155,85.91,85.882,7.39149821]
[1773207594437,34.85,85.96,85.882,7.39149821]
[1773207594635,2.60017155,85.92,85.882,7.39149821]
[1773207596332,10.474,85.917,85.882,7.39149821]
[1773207596534,2.60017155,85.91,85.882,7.39149821]
[1773207596736,2.60017155,85.91,85.857,7.4384462]
[1773207597039,2.60017155,85.91,85.861,7.4384462]
[1773207597537,2.60017155,85.9,85.861,7.4384462]
[1773207599747,10.475,85.908,85.861,7.4384462]
[1773207600538,2.60017155,85.9,85.861,7.4384462]
[1773207601447,2.60017155,85.91,85.861,7.4384462]
[1773207601644,2.60017155,85.89,85.85,7.50518223]
[1773207601847,2.60017155,85.9,85.851,7.50517859]
[1773207602044,13.07517155,85.91,85.861,7.50517859]
[1773207602642,10.474,85.919,85.861,7.50517859]
[1773207602846,10.474,85.919,85.815,15.16207692]
[1773207602847,10.474,85.919,85.871,7.50337888]
[1773207603041,2.60017155,85.92,85.871,7.50337888]
[1773207603350,2.60017155,85.91,85.871,7.50337888]
[1773207603745,2.60017155,85.92,85.871,7.50337888]
[1773207604750,10.474,85.918,85.871,7.50337888]
[1773207605147,2.60017155,85.92,85.871,7.50337888]
[1773207606146,10.473,85.927,85.881,7.49391757]
[1773207607956,2.60017155,85.93,85.881,7.49391757]
[1773207608756,284.24373997,85.936,85.891,7.45160053]
[1773207608952,2.60017155,85.93,85.891,7.45160053]
[1773207609154,284.24373997,85.936,85.891,7.45160053]
[1773207609553,2.60017155,85.95,85.901,7.45160053]
[1773207611052,2.60017155,85.94,85.901,7.45160053]
[1773207614060,13.07117155,85.94,85.901,7.45160053]
[1773207616054,2.60017155,85.94,85.887,7.46205165]
[1773207616355,2.60017155,85.9,85.861,7.46205165]
[1773207616660,10.477,85.898,85.861,7.46205165]
[1773207617553,2.60017155,85.89,85.861,7.46205165]
[1773207617761,13.07817155,85.89,85.861,7.46205165]
[1773207617953,2.60017155,85.9,85.861,7.46205165]
[1773207618263,2.60017155,85.91,85.861,7.46205165]
[1773207618655,2.60017155,85.9,85.861,7.46205165]
[1773207620360,2.60017155,85.91,85.861,7.46205165]
[1773207620659,14.26981512,85.95,85.805,28.93861387]
[1773207620660,2.60017155,85.92,85.871,7.44348048]
[1773207624053,2.60017155,85.91,85.871,7.44348048]
[1773207626866,34.85,85.932,85.871,7.44348048]
[1773207627066,2.60017155,85.92,85.871,7.44348048]
[1773207627965,285.09624549,85.947,85.881,7.41469847]
[1773207627966,34.85,85.946,85.881,7.41469847]
[1773207628166,285.09624549,85.947,85.881,7.41469847]
[1773207628167,2.60017155,85.93,85.881,7.41469847]
[1773207628367,34.85,85.944,85.881,7.41469847]
[1773207628368,2.60017155,85.92,85.881,7.41469847]
[1773207629268,2.60017155,85.93,85.881,7.41469847]
[1773207630170,10.473,85.928,85.881,7.41469847]
[1773207631670,34.85,85.947,85.878,10.479]
[1773207631671,10.472,85.938,85.891,7.3790675]
[1773207631970,2.60017155,85.93,85.891,7.3790675]
[1773207633270,10.473,85.931,85.891,7.3790675]
[1773207635573,2.60017155,85.93,85.891,7.3790675]
[1773207635774,10.473,85.929,85.891,7.3790675]
[1773207640575,10.473,85.929,85.87,7.37857415]
[1773207640770,2.60017155,85.88,85.819,7.36765322]
[1773207640983,2.60017155,85.88,85.831,7.36765322]
[1773207641273,34.85,85.928,85.86,9.96782477]
[1773207641481,34.85,85.926,85.861,7.36765322]
[1773207641777,2.60017155,85.91,85.871,7.36765322]
[1773207642076,2.60017155,85.9,85.871,7.36765322]
[1773207642279,2.60017155,85.9,85.851,7.36765222]
[1773207644773,2.60017155,85.89,85.851,7.36765222]
[1773207645176,10.477,85.896,85.851,7.36765222]
[1773207645377,2.60017155,85.89,85.851,7.36765222]
[1773207645681,2.60017155,85.88,85.836,7.1817778]
[1773207646281,2.60017155,85.87,85.836,7.1817778]
[1773207646481,2.60017155,85.87,85.82,2.60017155]
[1773207646687,2.60017155,85.87,85.821,7.18177845]
[1773207647082,2.60017155,85.88,85.831,7.17756563]
[1773207647780,2.60017155,85.87,85.831,7.17756563]
[1773207649085,2.60017155,85.88,85.831,7.17756563]
[1773207649588,2.60338813,85.88,85.831,7.17756563]
[1773207649989,2.60338813,85.87,85.831,7.17756563]
[1773207650689,10.48,85.869,85.831,7.17756563]
[1773207651986,2.60338813,85.86,85.819,7.19237618]
[1773207652186,2.60338813,85.85,85.8,2.60338813]
[1773207652393,2.60338813,85.85,85.807,7.19237618]
[1773207654091,2.60338813,85.84,85.79,2.60338813]
[1773207654392,2.60338813,85.83,85.815,7.692e-05]
[1773207654586,0.94534672,85.839,85.815,7.692e-05]
[1773207654790,2.60338813,85.84,85.815,7.692e-05]
[1773207655292,2.60338813,85.83,85.815,7.692e-05]
[1773207655786,0.92416428,85.839,85.815,7.692e-05]
[1773207655987,11.40816428,85.839,85.815,7.692e-05]
[1773207656786,2.60338813,85.83,85.815,7.692e-05]
[1773207657190,10.484,85.837,85.815,7.692e-05]
[1773207658386,0.94397867,85.863,85.815,7.692e-05]
[1773207658894,2.60338813,85.85,85.815,7.692e-05]
[1773207659086,2.60338813,85.84,85.815,7.692e-05]
[1773207659295,0.93773497,85.839,85.815,7.692e-05]
[1773207659494,8.83710715,85.881,85.815,7.692e-05]
[1773207659495,0.93767588,85.829,85.815,7.692e-05]
[1773207660196,2.60338813,85.83,85.815,7.692e-05]
[1773207660596,2.60338813,85.84,85.815,7.692e-05]
[1773207661199,0.93761631,85.855,85.815,7.692e-05]
[1773207661396,2.60338813,85.84,85.815,7.692e-05]
[1773207662197,2.60338813,85.86,85.815,3.7852459]
[1773207662399,2.60338813,85.84,85.815,7.692e-05]
[1773207663096,2.60338813,85.83,85.815,7.692e-05]
[1773207664698,10.485,85.829,85.815,7.692e-05]
[1773207666194,0.81841407,85.828,85.815,7.692e-05]
[1773207666596,0.81835957,85.819,85.781,3.78516898]
[1773207666796,0.81835957,85.819,85.77,2.60338813]
[1773207666797,2.60338813,85.81,85.77,2.60338813]
[1773207667002,2.60338813,85.81,85.771,3.78516898]
[1773207668204,0.81835957,85.819,85.771,3.78516898]
[1773207668503,2.60338813,85.82,85.772,3.78516898]
[1773207668901,2.60338813,85.82,85.781,3.78516898]
[1773207669102,10.485,85.828,85.781,3.78516898]
[1773207669303,2.60338813,85.82,85.781,3.78516898]
[1773207670006,13.08938813,85.82,85.781,3.78516898]
[1773207670897,2.60338813,85.83,85.781,3.78516898]
[1773207671305,0.75850756,85.846,85.801,3.78516898]
[1773207671608,0.75850756,85.846,85.81,2.60338813]
[1773207672009,0.75850756,85.846,85.801,3.78516898]
[1773207672304,0.75840539,85.864,85.811,3.78516898]
[1773207672512,10.482,85.856,85.811,3.78516898]
[1773207674504,10.483,85.848,85.811,3.78516898]
[1773207675718,0.75541949,85.856,85.811,3.78516898]
[1773207677413,10.482,85.851,85.811,3.78516898]
[1773207678912,0.75541949,85.856,85.811,3.78516898]
[1773207680712,0.75541949,85.856,85.82,2.60338813]
[1773207681112,0.75541949,85.856,85.82,6.60420828]
[1773207681514,0.75541949,85.856,85.821,4.00082015]
[1773207682418,10.48,85.871,85.831,4.00082015]
[1773207682616,2.60338813,85.88,85.831,4.00082015]
[1773207683017,3.65556322,85.88,85.831,4.00082015]
[1773207683320,14.13456322,85.88,85.831,4.00082015]
[1773207683618,1.0521308,85.879,85.831,4.00082015]
[1773207684314,10.479,85.878,85.831,4.00082015]
[1773207684519,1.05208553,85.877,85.831,4.00082015]
[1773207685318,10.48,85.873,85.831,4.00082015]
[1773207685718,1.10747999,85.872,85.831,4.00082015]
[1773207694120,1.10747999,85.872,85.774,327.95]
[1773207694121,2.60338813,85.88,85.841,4.00082015]
[1773207694626,1.0766543,85.879,85.841,4.00082015]
[1773207695024,10.479,85.877,85.841,4.00082015]
[1773207696026,1.077691,85.876,85.841,4.00082015]
[1773207700026,2.60338813,85.87,85.831,3.71772453]
[1773207700921,1.00703805,85.879,85.831,3.71772453]
[1773207702326,10.479,85.875,85.831,3.71772453]
[1773207703127,11.49429365,85.875,85.831,3.71772453]
[1773207703321,10.48,85.872,85.831,3.71772453]
[1773207706226,1.02682383,85.871,85.831,3.71772453]
[1773207706428,2.60338813,85.87,85.831,3.71772453]
[1773207706823,1.02682383,85.871,85.831,3.71772453]
[1773207707725,11.50605021,85.881,85.831,3.71772453]
[1773207707927,1.02705021,85.879,85.831,3.71772453]
[1773207709231,10.479,85.878,85.831,3.71772453]